fUST/lending_fUST_20250811
["ID","MTS","AMOUNT","RATE_DAILY","PERIOD"]
[378504105,1754887845625,-500.0,0.00021973,2]
[378504106,1754887845635,-500.0,0.00021973,2]
[378504107,1754887845645,-248.49009127,0.00021973,2]
[378504108,1754887845655,-500.0,0.00021973,2]
[378504109,1754887845665,-500.0,0.00021973,2]
[378504110,1754887845675,-501.324461,0.00021973,2]
[378504111,1754887845685,-500.0,0.00021973,2]
[378504112,1754887845695,-501.12325849,0.00021973,2]
[378504113,1754887845705,-500.61074542,0.00021973,2]
[378504114,1754887845715,-160.04889471,0.00021973,2]
[378504115,1754887845724,-185.25659566,0.00021973,2]
[378504116,1754887845733,-500.0,0.00021973,2]
[378504117,1754887845743,-500.0,0.00021973,2]
[378504118,1754887845752,-500.0,0.00021973,2]
[378504119,1754887845763,-500.0,0.00021973,2]
[378504120,1754887845773,-500.78623683,0.00021973,2]
[378504121,1754887845783,-500.0,0.00021973,2]
[378504122,1754887845792,-500.0,0.00021973,2]
[378504123,1754887845801,-500.0,0.00021973,2]
[378504124,1754887845810,-500.0,0.00021973,2]
[378504125,1754887845819,-500.49069383,0.00021973,2]
[378504126,1754887845828,-500.0,0.00021973,2]
[378504127,1754887845838,-500.0,0.00021973,2]
[378504128,1754887845847,-501.71607261,0.00021973,2]
[378504129,1754887845856,-500.0,0.00021973,2]
[378504130,1754887845865,-500.0,0.00021973,2]
[378504131,1754887845874,-500.0,0.00021973,2]
[378504132,1754887845883,-500.0,0.00021973,2]
[378504133,1754887845892,-574.589025,0.00021973,2]
[378504134,1754887845902,-500.0,0.00021973,2]
[378504135,1754887845912,-500.0,0.00021973,2]
[378504136,1754887845922,-501.39986974,0.00021973,2]
[378504137,1754887845931,-500.0,0.00021973,2]
[378504138,1754887845944,-500.0,0.00021973,2]
[378504139,1754887845954,-500.0,0.00021973,2]
[378504140,1754887845964,-500.0,0.00021973,2]
[378504141,1754887845973,-150.10004413,0.00021973,2]
[378504142,1754887845982,-158.46341349,0.00021973,2]
[378504143,1754887845993,-158.4611667,0.00021973,2]
[378504144,1754887846005,-500.0,0.00021973,2]
[378504145,1754887846015,-501.16908685,0.00021973,2]
[378504146,1754887846024,-501.87300072,0.00021973,2]
[378504147,1754887846034,-500.0,0.00021973,2]
[378504148,1754887846044,-500.0,0.00021973,2]
[378504149,1754887846053,-500.59351251,0.00021973,2]
[378504150,1754887846063,-500.0,0.00021973,2]
[378504151,1754887846073,-500.0,0.00021973,2]
[378504152,1754887846081,-500.0,0.00021973,2]
[378504153,1754887846090,-500.0,0.00021973,2]
[378504154,1754887846100,-500.0,0.00021973,2]
[378504155,1754887846109,-500.0,0.00021973,2]
[378504156,1754887846118,-500.0,0.00021973,2]
[378504157,1754887846129,-278.990504,0.00021973,7]
[378504158,1754887846138,-631.46104003,0.00021973,2]
[378504159,1754887846147,-1136.62987205,0.00021973,2]
[378504160,1754887846156,-151.0,0.00021973,7]
[378504161,1754887846165,-2020.67532809,0.00021973,2]
[378504162,1754887846175,-3157.30520014,0.00021973,2]
[378504163,1754887846184,-4546.51948821,0.00021973,2]
[378504164,1754887846193,-6188.31819228,0.00021973,2]
[378504165,1754887846202,-8082.70131237,0.00021973,2]
[378504166,1754887846211,-10219.43917961,0.00021973,2]
[378504167,1754887846220,-226.06531692,0.00021973,2]
[378504168,1754887846230,-904.26126767,0.00021973,2]
[378504169,1754887846239,-2034.58785226,0.00021973,2]
[378504170,1754887846248,-3617.04507068,0.00021973,2]
[378504171,1754887846257,-5651.63292294,0.00021973,2]
[378504172,1754887846267,-8130.21305763,0.00021973,2]
[378504173,1754887846277,-151.0,0.00021973,7]
[378504174,1754887846287,-533.35,0.00021999,2]
[378504175,1754887846298,-533.35,0.00021999,2]
[378504176,1754887846307,-533.35,0.00021999,2]
[378504177,1754887846316,-533.35,0.00021999,2]
[378504178,1754887846326,-533.35,0.00021999,2]
[378504179,1754887846335,-533.35,0.00021999,2]
[378504180,1754887846345,-153.0,0.00022,2]
[378504181,1754887846354,-151.0,0.00022,7]
[378504182,1754887846363,-151.0,0.00022,7]
[378504183,1754887846372,-151.0,0.00022,7]
[378504184,1754887846384,-151.0,0.00022,7]
[378504185,1754887846394,-151.0,0.00022,7]
[378504186,1754887846403,-649.08122569,0.00022,2]
[378504187,1754887846413,-10274.78,0.00022,7]
[378504188,1754887846423,-15325.17206193,0.00022,7]
[378504189,1754887846475,-337.44318163,0.00019949,2]
[378504190,1754887846550,-335.67681837,0.00019949,2]
[378504191,1754887846560,-673.12,0.00020223,2]
[378504192,1754887846569,-673.12,0.00020497,2]
[378504193,1754887846578,-673.12,0.00020771,2]
[378504194,1754887846587,-673.12,0.00021045,2]
[378504195,1754887846596,-673.12,0.00021319,2]
[378504196,1754887846606,-5230.03793807,0.00022,7]
[378504197,1754887846615,-7631.42922756,0.00022,7]
[378504198,1754887846716,-1222.75555246,0.00020937,10]
[378504218,1754888101329,33490.9,0.00031302,30]
[378504224,1754888215174,10021.32,0.00031302,30]
[378504243,1754888336702,171.7521324,0.00019016,2]
[378504258,1754888429596,162.723389,0.00013699,2]
[378504262,1754888471844,536.0,0.00030136,120]
[378504468,1754889038236,-364.32482566,0.00019848,2]
[378504469,1754889038246,-11247.32275243,0.0001989,2]
[378504470,1754889038255,-6528.48284284,0.000199,2]
[378504471,1754889038265,-670.52,0.00019947,2]
[378504472,1754889038274,-460.0,0.00019947,2]
[378504473,1754889038283,-1863.08,0.00019947,2]
[378504474,1754889038293,-1626.97,0.00019947,2]
[378504475,1754889038302,-787.55,0.00019947,2]
[378504476,1754889038314,-460.0,0.00019947,2]
[378504477,1754889038323,-460.0,0.00019947,2]
[378504478,1754889038333,-460.0,0.00019947,2]
[378504479,1754889038342,-460.0,0.00019948,2]
[378504480,1754889038352,-460.0,0.00019948,2]
[378504481,1754889038362,-460.0,0.00019948,2]
[378504482,1754889038371,-460.0,0.00019948,2]
[378504483,1754889038381,-2317.41,0.00019948,2]
[378504484,1754889038391,-460.0,0.00019948,2]
[378504485,1754889038402,-460.0,0.00019948,2]
[378504486,1754889038411,-460.0,0.00019948,2]
[378504487,1754889038420,-460.0,0.00019948,2]
[378504488,1754889038429,-460.0,0.00019948,2]
[378504489,1754889038438,-618.74,0.00019948,2]
[378504490,1754889038448,-1603.16,0.00019948,2]
[378504491,1754889038457,-1261.56,0.00019948,2]
[378504492,1754889038466,-460.0,0.00019948,2]
[378504493,1754889038476,-460.0,0.00019948,2]
[378504494,1754889038486,-460.0,0.00019948,2]
[378504495,1754889038496,-460.0,0.00019948,2]
[378504496,1754889038505,-460.0,0.00019948,2]
[378504497,1754889038514,-460.0,0.00019948,2]
[378504498,1754889038524,-271.67873486,0.00019948,2]
[378504499,1754889038532,-460.0,0.00019948,2]
[378504500,1754889038542,-460.0,0.00019948,2]
[378504501,1754889038551,-460.0,0.00019948,2]
[378504502,1754889038560,-460.0,0.00019948,2]
[378504503,1754889038570,-460.0,0.00019948,2]
[378504504,1754889038580,-460.0,0.00019948,2]
[378504505,1754889038589,-460.0,0.00019948,2]
[378504506,1754889038599,-1356.49,0.00019948,2]
[378504507,1754889038608,-973.7,0.00019948,2]
[378504508,1754889038618,-779.47,0.00019948,2]
[378504509,1754889038627,-460.0,0.00019948,2]
[378504510,1754889038636,-460.0,0.00019948,2]
[378504511,1754889038645,-460.0,0.00019948,2]
[378504512,1754889038654,-155.90322173,0.00019948,2]
[378504513,1754889038664,-460.0,0.00019949,2]
[378504514,1754889038673,-460.0,0.00019949,2]
[378504515,1754889038684,-547.78,0.00019949,2]
[378504516,1754889038693,-460.0,0.00019949,2]
[378504517,1754889038702,-460.0,0.00019949,2]
[378504518,1754889038711,-670.21,0.00019949,2]
[378504519,1754889038721,-460.0,0.00019949,2]
[378504520,1754889038731,-460.0,0.00019949,2]
[378504521,1754889038740,-460.0,0.00019949,2]
[378504522,1754889038749,-460.0,0.00019949,2]
[378504523,1754889038758,-460.0,0.00019949,2]
[378504524,1754889038767,-460.0,0.00019949,2]
[378504525,1754889038777,-1015.55,0.00019949,2]
[378504526,1754889038786,-460.0,0.00019949,2]
[378504527,1754889038795,-460.0,0.00019949,2]
[378504528,1754889038804,-711.32,0.00019949,2]
[378504529,1754889038814,-460.0,0.0001995,2]
[378504530,1754889038823,-460.0,0.0001995,2]
[378504531,1754889038833,-460.0,0.0001995,2]
[378504532,1754889038842,-460.0,0.0001995,2]
[378504533,1754889038851,-460.0,0.0001995,2]
[378504534,1754889038861,-2475.83,0.0001995,2]
[378504535,1754889038870,-475.52,0.0001995,2]
[378504536,1754889038879,-766.73,0.0001995,2]
[378504537,1754889038888,-460.0,0.0001995,2]
[378504538,1754889038898,-460.0,0.0001995,2]
[378504539,1754889038908,-460.0,0.0001995,2]
[378504540,1754889038918,-460.0,0.0001995,2]
[378504541,1754889038927,-1015.55,0.0001995,2]
[378504542,1754889038936,-1294.94,0.0001995,2]
[378504543,1754889038946,-460.0,0.0001995,2]
[378504544,1754889038955,-460.0,0.00019951,2]
[378504545,1754889038964,-948.14,0.00019951,2]
[378504546,1754889038974,-686.69,0.00019951,2]
[378504547,1754889038983,-460.0,0.00019951,2]
[378504548,1754889038991,-460.0,0.00019951,2]
[378504549,1754889039001,-1327.54,0.00019951,2]
[378504550,1754889039011,-1015.55,0.00019989,2]
[378504551,1754889039020,-1015.55,0.00019989,2]
[378504552,1754889039029,-1015.55,0.00019989,2]
[378504553,1754889039038,-1015.55,0.00019997,2]
[378504554,1754889039047,-1015.55,0.00019997,2]
[378504555,1754889039056,-493.84,0.00019997,2]
[378504556,1754889039066,-160.0,0.0002,3]
[378504557,1754889039075,-500.0,0.00020128,2]
[378504558,1754889039088,-1015.55,0.00020172,2]
[378504559,1754889039097,-670.52,0.00020221,2]
[378504560,1754889039106,-460.0,0.00020221,2]
[378504561,1754889039115,-1863.08,0.00020221,2]
[378504562,1754889039125,-1626.97,0.00020221,2]
[378504563,1754889039134,-787.55,0.00020221,2]
[378504564,1754889039143,-460.0,0.00020221,2]
[378504565,1754889039152,-460.0,0.00020221,2]
[378504566,1754889039161,-460.0,0.00020222,2]
[378504567,1754889039170,-460.0,0.00020222,2]
[378504568,1754889039180,-2317.41,0.00020222,2]
[378504569,1754889039189,-460.0,0.00020222,2]
[378504570,1754889039199,-210.83525927,0.00020222,2]
[378504571,1754889039209,-460.0,0.00020222,2]
[378504572,1754889039218,-618.74,0.00020222,2]
[378504573,1754889039227,-1603.16,0.00020222,2]
[378504574,1754889039237,-1261.56,0.00020222,2]
[378504575,1754889039247,-460.0,0.00020222,2]
[378504576,1754889039256,-460.0,0.00020222,2]
[378504577,1754889039265,-460.0,0.00020222,2]
[378504578,1754889039275,-460.0,0.00020222,2]
[378504579,1754889039284,-460.0,0.00020222,2]
[378504580,1754889039294,-460.0,0.00020222,2]
[378504581,1754889039303,-506.4979227,0.00020222,2]
[378504582,1754889039316,-460.0,0.00020222,2]
[378504583,1754889039325,-460.0,0.00020222,2]
[378504584,1754889039335,-1356.49,0.00020222,2]
[378504585,1754889039344,-973.7,0.00020222,2]
[378504586,1754889039354,-779.47,0.00020222,2]
[378504587,1754889039363,-460.0,0.00020222,2]
[378504588,1754889039372,-460.0,0.00020222,2]
[378504589,1754889039383,-460.0,0.00020222,2]
[378504590,1754889039393,-460.0,0.00020223,2]
[378504591,1754889039403,-547.78,0.00020223,2]
[378504592,1754889039412,-460.0,0.00020223,2]
[378504593,1754889039422,-439.33807383,0.00020223,2]
[378504594,1754889039432,-670.21,0.00020223,2]
[378504595,1754889039442,-460.0,0.00020223,2]
[378504596,1754889039451,-460.0,0.00020223,2]
[378504597,1754889039461,-460.0,0.00020223,2]
[378504598,1754889039471,-460.0,0.00020223,2]
[378504599,1754889039481,-1015.55,0.00020223,2]
[378504600,1754889039490,-460.0,0.00020223,2]
[378504601,1754889039499,-711.32,0.00020223,2]
[378504602,1754889039509,-460.0,0.00020224,2]
[378504603,1754889039518,-460.0,0.00020224,2]
[378504604,1754889039528,-2475.83,0.00020224,2]
[378504605,1754889039538,-766.73,0.00020224,2]
[378504606,1754889039548,-460.0,0.00020224,2]
[378504607,1754889039558,-579.59736087,0.00020224,2]
[378504608,1754889039567,-553.41171569,0.00020224,2]
[378504609,1754889039577,-1015.55,0.00020224,2]
[378504610,1754889039587,-1294.94,0.00020224,2]
[378504611,1754889039596,-460.0,0.00020224,2]
[378504612,1754889039606,-948.14,0.00020225,2]
[378504613,1754889039616,-686.69,0.00020225,2]
[378504614,1754889039625,-460.0,0.00020225,2]
[378504615,1754889039634,-460.0,0.00020225,2]
[378504616,1754889039644,-1327.54,0.00020225,2]
[378504617,1754889039653,-1015.55,0.00020271,2]
[378504618,1754889039663,-493.84,0.00020271,2]
[378504619,1754889039672,-200.0,0.00020287,15]
[378504620,1754889039682,-200.0,0.00020287,15]
[378504621,1754889039692,-200.0,0.00020287,15]
[378504622,1754889039702,-200.0,0.00020287,15]
[378504623,1754889039712,-200.0,0.00020287,15]
[378504624,1754889039722,-151.0,0.00020296,2]
[378504625,1754889039732,-151.42926935,0.00020296,2]
[378504626,1754889039741,-151.0,0.00020296,2]
[378504628,1754889039751,-151.0,0.00020296,2]
[378504629,1754889039760,-151.0,0.00020296,2]
[378504630,1754889039770,-151.0,0.00020296,2]
[378504631,1754889039779,-151.0,0.00020296,2]
[378504632,1754889039789,-151.0,0.00020296,2]
[378504633,1754889039799,-151.0,0.00020296,2]
[378504634,1754889039808,-151.0,0.00020296,2]
[378504635,1754889039818,-151.0,0.00020296,2]
[378504636,1754889039827,-151.0,0.00020296,2]
[378504637,1754889039836,-151.0,0.00020296,2]
[378504638,1754889039846,-151.0,0.00020296,2]
[378504639,1754889039855,-151.0,0.00020296,2]
[378504640,1754889039864,-151.0,0.00020296,2]
[378504641,1754889039874,-151.0,0.00020296,2]
[378504642,1754889039883,-151.0,0.00020296,2]
[378504643,1754889039893,-1015.55,0.00020341,2]
[378504644,1754889039902,-1015.55,0.00020341,2]
[378504645,1754889039911,-1498.48401402,0.00020397,2]
[378504646,1754889039920,-670.52,0.00020495,2]
[378504648,1754889039930,-460.0,0.00020495,2]
[378504650,1754889039939,-1863.08,0.00020495,2]
[378504652,1754889039949,-1626.97,0.00020495,2]
[378504653,1754889039958,-787.55,0.00020495,2]
[378504654,1754889039967,-460.0,0.00020495,2]
[378504655,1754889039976,-460.0,0.00020495,2]
[378504656,1754889039986,-460.0,0.00020496,2]
[378504657,1754889039995,-2317.41,0.00020496,2]
[378504658,1754889040004,-460.0,0.00020496,2]
[378504659,1754889040013,-618.74,0.00020496,2]
[378504660,1754889040023,-1603.16,0.00020496,2]
[378504661,1754889040031,-1261.56,0.00020496,2]
[378504662,1754889040041,-460.0,0.00020496,2]
[378504664,1754889040050,-460.0,0.00020496,2]
[378504665,1754889040059,-460.0,0.00020496,2]
[378504666,1754889040068,-460.0,0.00020496,2]
[378504668,1754889040078,-460.0,0.00020496,2]
[378504669,1754889040087,-460.0,0.00020496,2]
[378504671,1754889040096,-460.0,0.00020496,2]
[378504673,1754889040105,-460.0,0.00020496,2]
[378504674,1754889040115,-1356.49,0.00020496,2]
[378504675,1754889040124,-973.7,0.00020496,2]
[378504676,1754889040133,-779.47,0.00020496,2]
[378504678,1754889040142,-460.0,0.00020496,2]
[378504680,1754889040151,-460.0,0.00020496,2]
[378504681,1754889040161,-460.0,0.00020496,2]
[378504682,1754889040170,-161.99507314,0.00020497,2]
[378504683,1754889040180,-547.78,0.00020497,2]
[378504684,1754889040189,-460.0,0.00020497,2]
[378504685,1754889040199,-670.21,0.00020497,2]
[378504686,1754889040209,-460.0,0.00020497,2]
[378504687,1754889040218,-460.0,0.00020497,2]
[378504688,1754889040227,-460.0,0.00020497,2]
[378504689,1754889040236,-1015.55,0.00020497,2]
[378504690,1754889040245,-329.70133524,0.00020497,2]
[378504691,1754889040255,-711.32,0.00020497,2]
[378504692,1754889040264,-460.0,0.00020498,2]
[378504693,1754889040272,-460.0,0.00020498,2]
[378504694,1754889040282,-2475.83,0.00020498,2]
[378504695,1754889040291,-460.0,0.00020498,2]
[378504696,1754889040300,-1294.94,0.00020498,2]
[378504698,1754889040313,-460.0,0.00020498,2]
[378504699,1754889040322,-948.14,0.00020499,2]
[378504700,1754889040331,-686.69,0.00020499,2]
[378504701,1754889040341,-460.0,0.00020499,2]
[378504702,1754889040352,-1015.55,0.00020499,2]
[378504703,1754889040361,-460.0,0.00020499,2]
[378504704,1754889040371,-1327.54,0.00020499,2]
[378504705,1754889040380,-1777.69145028,0.00020536,2]
[378504706,1754889040392,-493.84,0.00020545,2]
[378504707,1754889040401,-500.0,0.00020607,2]
[378504708,1754889040411,-500.0,0.00020607,2]
[378504709,1754889040420,-500.0,0.00020607,2]
[378504710,1754889040430,-507.22421426,0.00020607,2]
[378504711,1754889040440,-500.0,0.00020636,2]
[378504712,1754889040450,-247.43580577,0.00020636,2]
[378504713,1754889040459,-616.86229207,0.00020636,2]
[378504714,1754889040468,-500.0,0.00020636,2]
[378504715,1754889040479,-371.51471519,0.00020636,2]
[378504716,1754889040487,-500.0,0.00020636,2]
[378504717,1754889040496,-501.96065926,0.00020636,2]
[378504718,1754889040505,-500.0,0.00020636,2]
[378504719,1754889040515,-500.0,0.00020636,2]
[378504720,1754889040523,-504.67711167,0.00020636,2]
[378504721,1754889040532,-500.0,0.00020717,2]
[378504722,1754889040541,-500.0,0.00020717,2]
[378504723,1754889040551,-500.88918197,0.00020733,2]
[378504724,1754889040560,-500.0,0.00020733,2]
[378504725,1754889040569,-512.65551404,0.00020748,2]
[378504726,1754889040579,-215.4905783,0.00020761,10]
[378504727,1754889040588,-527.9539256,0.00020761,10]
[378504728,1754889040597,-417.15472785,0.00020761,10]
[378504729,1754889040606,-12671.21867243,0.00020761,10]
[378504730,1754889040615,-421.48,0.00020762,3]
[378504731,1754889040625,-210.74,0.00020762,3]
[378504732,1754889040634,-632.27,0.00020762,3]
[378504733,1754889040643,-842.97,0.00020763,3]
[378504734,1754889040653,-194.66,0.00020766,2]
[378504735,1754889040662,-670.52,0.00020769,2]
[378504736,1754889040671,-460.0,0.00020769,2]
[378504737,1754889040681,-1863.08,0.00020769,2]
[378504738,1754889040690,-1626.97,0.00020769,2]
[378504739,1754889040700,-787.55,0.00020769,2]
[378504740,1754889040709,-460.0,0.00020769,2]
[378504741,1754889040719,-460.0,0.00020769,2]
[378504742,1754889040728,-460.0,0.0002077,2]
[378504743,1754889040738,-2317.41,0.0002077,2]
[378504744,1754889040747,-460.0,0.0002077,2]
[378504745,1754889040758,-618.74,0.0002077,2]
[378504746,1754889040769,-1603.16,0.0002077,2]
[378504747,1754889040778,-1261.56,0.0002077,2]
[378504748,1754889040788,-460.0,0.0002077,2]
[378504749,1754889040798,-460.0,0.0002077,2]
[378504750,1754889040808,-581.58,0.0002077,2]
[378504751,1754889040817,-460.0,0.0002077,2]
[378504752,1754889040827,-460.0,0.0002077,2]
[378504753,1754889040837,-460.0,0.0002077,2]
[378504754,1754889040846,-1356.49,0.0002077,2]
[378504755,1754889040855,-973.7,0.0002077,2]
[378504756,1754889040865,-779.47,0.0002077,2]
[378504757,1754889040875,-460.0,0.0002077,2]
[378504758,1754889040884,-167.9689315,0.0002077,2]
[378504759,1754889040894,-460.0,0.0002077,2]
[378504760,1754889040904,-547.78,0.00020771,2]
[378504761,1754889040914,-460.0,0.00020771,2]
[378504762,1754889040923,-670.21,0.00020771,2]
[378504763,1754889040932,-460.0,0.00020771,2]
[378504764,1754889040941,-460.0,0.00020771,2]
[378504765,1754889040951,-460.0,0.00020771,2]
[378504766,1754889040960,-1015.55,0.00020771,2]
[378504767,1754889040970,-711.32,0.00020771,2]
[378504768,1754889040980,-460.0,0.00020772,2]
[378504769,1754889040989,-460.0,0.00020772,2]
[378504770,1754889040998,-2475.83,0.00020772,2]
[378504771,1754889041008,-460.0,0.00020772,2]
[378504772,1754889041017,-1294.94,0.00020772,2]
[378504773,1754889041026,-460.0,0.00020772,2]
[378504774,1754889041036,-948.14,0.00020773,2]
[378504775,1754889041045,-686.69,0.00020773,2]
[378504776,1754889041054,-460.0,0.00020773,2]
[378504777,1754889041064,-460.0,0.00020773,2]
[378504778,1754889041072,-1327.54,0.00020773,2]
[378504779,1754889041081,-500.0,0.00020776,2]
[378504780,1754889041090,-1015.55,0.00020819,2]
[378504781,1754889041099,-493.84,0.00020819,2]
[378504782,1754889041108,-300.0,0.00020847,2]
[378504783,1754889041117,-1015.55,0.00020999,2]
[378504784,1754889041126,-1015.55,0.00020999,2]
[378504785,1754889041135,-1015.55,0.00020999,2]
[378504786,1754889041145,-1015.55,0.00020999,2]
[378504787,1754889041154,-1015.55,0.00020999,2]
[378504788,1754889041163,-1015.55,0.00020999,2]
[378504789,1754889041172,-1015.7382231,0.00020999,2]
[378504790,1754889041182,-500.0,0.00021004,2]
[378504791,1754889041191,-350.0,0.00021004,2]
[378504792,1754889041201,-292.61864953,0.00021004,2]
[378504793,1754889041209,-500.0,0.00021004,2]
[378504794,1754889041219,-500.0,0.00021004,2]
[378504795,1754889041228,-500.0,0.00021004,2]
[378504796,1754889041237,-500.0,0.00021004,2]
[378504797,1754889041246,-500.0,0.00021004,2]
[378504798,1754889041255,-233.82811793,0.00021004,2]
[378504799,1754889041264,-500.0,0.00021004,2]
[378504800,1754889041274,-500.0,0.00021004,2]
[378504801,1754889041283,-500.0,0.00021004,2]
[378504802,1754889041292,-500.0,0.00021004,2]
[378504803,1754889041301,-291.13330768,0.00021005,2]
[378504804,1754889041314,-1777.69145025,0.00021007,2]
[378504805,1754889041323,-670.52,0.00021043,2]
[378504806,1754889041332,-460.0,0.00021043,2]
[378504807,1754889041342,-1863.08,0.00021043,2]
[378504808,1754889041353,-1626.97,0.00021043,2]
[378504809,1754889041362,-787.55,0.00021043,2]
[378504810,1754889041372,-460.0,0.00021043,2]
[378504811,1754889041384,-460.0,0.00021044,2]
[378504812,1754889041394,-2317.41,0.00021044,2]
[378504813,1754889041404,-460.0,0.00021044,2]
[378504814,1754889041412,-618.74,0.00021044,2]
[378504815,1754889041422,-1603.16,0.00021044,2]
[378504816,1754889041431,-1261.56,0.00021044,2]
[378504817,1754889041440,-460.0,0.00021044,2]
[378504818,1754889041449,-460.0,0.00021044,2]
[378504819,1754889041459,-460.0,0.00021044,2]
[378504820,1754889041468,-460.0,0.00021044,2]
[378504821,1754889041477,-460.0,0.00021044,2]
[378504822,1754889041486,-1356.49,0.00021044,2]
[378504823,1754889041495,-973.7,0.00021044,2]
[378504824,1754889041504,-779.47,0.00021044,2]
[378504825,1754889041513,-487.38691856,0.00021044,2]
[378504826,1754889041522,-460.0,0.00021044,2]
[378504827,1754889041532,-547.78,0.00021045,2]
[378504828,1754889041542,-460.0,0.00021045,2]
[378504829,1754889041551,-670.21,0.00021045,2]
[378504830,1754889041560,-460.0,0.00021045,2]
[378504831,1754889041570,-460.0,0.00021045,2]
[378504832,1754889041579,-460.0,0.00021045,2]
[378504833,1754889041588,-711.32,0.00021045,2]
[378504834,1754889041597,-460.0,0.00021046,2]
[378504835,1754889041607,-460.0,0.00021046,2]
[378504836,1754889041616,-2475.83,0.00021046,2]
[378504837,1754889041626,-460.0,0.00021046,2]
[378504838,1754889041635,-1294.94,0.00021046,2]
[378504839,1754889041645,-164.86494921,0.00021046,2]
[378504840,1754889041654,-948.14,0.00021047,2]
[378504841,1754889041663,-686.69,0.00021047,2]
[378504842,1754889041824,-460.0,0.00021047,2]
[378504843,1754889041834,-1327.54,0.00021047,2]
[378504844,1754889041843,-160.0,0.0002105,2]
[378504845,1754889041852,-160.0,0.0002105,2]
[378504846,1754889041861,-160.0,0.0002105,2]
[378504847,1754889041871,-160.0,0.0002105,2]
[378504848,1754889041880,-160.0,0.0002105,2]
[378504849,1754889041889,-160.0,0.0002105,2]
[378504850,1754889041898,-215.4905783,0.0002105,2]
[378504851,1754889041907,-216.68257536,0.0002105,2]
[378504852,1754889041917,-417.15472785,0.0002105,2]
[378504853,1754889041926,-160.0,0.0002105,2]
[378504854,1754889041935,-231.9940742,0.0002105,2]
[378504855,1754889041946,-527.9539256,0.0002105,2]
[378504856,1754889041955,-160.0,0.0002105,2]
[378504857,1754889041964,-461.69158338,0.0002105,2]
[378504858,1754889041973,-12671.21867243,0.0002105,2]
[378504859,1754889041983,-843.18994796,0.0002105,2]
[378504860,1754889041992,-160.0,0.00021051,2]
[378504861,1754889042001,-160.0,0.00021051,2]
[378504862,1754889042011,-493.84,0.00021093,2]
[378504863,1754889042020,-1000.0,0.00021155,2]
[378504864,1754889042029,-1112.23277963,0.00021155,2]
[378504865,1754889042038,-1000.0,0.00021155,2]
[378504866,1754889042047,-740.15173798,0.00021184,2]
[378504867,1754889042056,-1000.0,0.00021184,2]
[378504868,1754889042065,-741.54488699,0.00021184,2]
[378504869,1754889042074,-1000.0,0.00021184,2]
[378504870,1754889042083,-488.56545934,0.00021184,2]
[378504871,1754889042092,-500.0,0.00021187,2]
[378504872,1754889042102,-6016.39574972,0.00021217,2]
[378504873,1754889042111,-500.0,0.0002122,2]
[378504874,1754889042120,-500.0,0.00021265,2]
[378504875,1754889042129,-1000.0,0.00021265,2]
[378504876,1754889042139,-670.52,0.00021317,2]
[378504877,1754889042147,-243.84931234,0.00021317,2]
[378504878,1754889042157,-1863.08,0.00021317,2]
[378504879,1754889042166,-1626.97,0.00021317,2]